Cogmind - Beta 16 @@@ ROGUE MODE // 2025.11.23 @ 07:59:13 // Winter2019/RPGLIKE Player: GFYguy Result: Destroyed by G-34 Mercenary with Small Laser Performance ------------- Evolutions (1) 500 Regions Visited (3) 600 Robots Destroyed (18) 90 Value Destroyed (402) 402 Prototype IDs (1) 20 Alien Tech Used (0) 0 Bonus (0) 0 TOTAL SCORE: 1612 Bonus ------- None Cogmind --------- Core Integrity 0/600 Matter 280/300 Energy 73/100 System Corruption 0% Temperature Warm (183) Movement Core (50) Location -9/Materials Parts ------- > --- POWER (1) -------- (None) > --- PROPULSION (1) --- (None) > --- UTILITY (1) ------ Structural Scanner > --- WEAPON (2) ------- Advanced Beam Rifle Advanced Beam Rifle > --- INVENTORY (1) ---- Experimental Sensor Array Peak State ------------ > --- POWER ------------ (None) > --- PROPULSION ------- (None) > --- UTILITY ---------- Structural Scanner > --- WEAPON ----------- Advanced Beam Rifle Advanced Beam Rifle > --- INVENTORY -------- Experimental Sensor Array [Rating: 9] Favorites ----------- Power None Propulsion None Utility Structural Scanner Device Structural Scanner Weapon Medium Laser Energy Gun Medium Laser Build | -11 -10 -10 -9 ------- Run | Yrd Mat Min Mat Slots Evolved 1 | 1 . . . Power . | . . . . Propulsion . | . . . . Utility . | . . . . Weapon 1 | 1 . . . Parts Attached 5 | 2 1 . 2 Power . | . . . . Engine . | . . . . Core . | . . . . Reactor . | . . . . Propulsion . | . . . . Treads . | . . . . Leg . | . . . . Wheel . | . . . . Hover . | . . . . Flight . | . . . . Utility 1 | . 1 . . Device 1 | . 1 . . Storage . | . . . . Processor . | . . . . Hackware . | . . . . Protection . | . . . . Artifact . | . . . . Weapon 4 | 2 . . 2 Energy Gun 4 | 2 . . 2 Energy Cannon . | . . . . Ballistic Gun . | . . . . Ballistic Cannon . | . . . . Launcher . | . . . . Special Weapon . | . . . . Impact Weapon . | . . . . Slashing Weapon . | . . . . Piercing Weapon . | . . . . Special Melee Weapon . | . . . . Unidentified Prototypes 1 | . . . 1 Parts Lost 1 | . . . 1 Power . | . . . . Propulsion . | . . . . Utility . | . . . . Weapon 1 | . . . 1 Highest Loss Streak 1 | . . . 1 To Critical Strikes . | . . . . Average Backups . | . . . 1 Power . | . . . . Propulsion . | . . . . Utility . | . . . 1 Weapon . | . . . . Tool/Special . | . . . . Unused Backups 2 | . . 1 1 Power . | . . . . Propulsion . | . . . . Utility 2 | . . 1 1 Weapon . | . . . . Tool/Special . | . . . . Average Slot Usage (%) 57 | . 52 60 56 Device 18 | . 12 20 20 Energy Gun 39 | . 40 40 36 Peak Build Rating 9 | 2 3 3 9 Average Rating 3 | 1 2 3 4 On Entrance 2 | . 2 3 3 Avg Prop Armor Cover (%) . | . . . . Naked Turns . | . . . . Heaviest Build 5 | 4 5 5 5 Greatest Support 8 | 3 8 8 8 Greatest Overweight (x) 1 | 1 1 . . Average Overweight (x) . | . . . . Largest Inventory Capacity 1 | . 1 1 1 Average Capacity . | . . 1 1 Most Carried 1 | . 1 1 1 Average Carried . | . . . 1 Final Capacity 1 | . 1 1 1 Final Carried 1 | . 1 1 1 Class Distribution -------------------- 100% | Mutant Dominant Class ---------------- Mutant | -10/Materials Mutant | -10/Mines Mutant | -9/Materials Resources | -11 -10 -10 -9 ----------- Run | Yrd Mat Min Mat Matter Collected 240 | 220 20 . . Remotely . | . . . . Salvage Created 583 | . 180 229 174 Parts 31 | . 9 8 14 Haulers Intercepted 2 | . 2 . . Recyclers Shooed 1 | . . . 1 Parts Field Recycled . | . . . . Retrieved Matter . | . . . . Parts Self-Destructed . | . . . . Prevented . | . . . . Parts Restored . | . . . . Kills | -11 -10 -10 -9 ------- Run | Yrd Mat Min Mat Combat Hostiles Destroyed 14 | . 1 6 7 Guns 13 | . 1 5 7 Classes Destroyed 5 | . 3 1 1 Hauler 2 | . 2 . . Watcher 2 | . 2 . . Swarmer 7 | . . 3 4 Grunt 6 | . 1 3 2 Brawler 1 | . . . 1 Best Kill Streak 4 | . 3 3 4 Combat Bots Only 4 | . 1 3 4 Max Kills in Single Turn 2 | . 1 1 2 Gunslinging . | . . . . Exploded . | . . . . Melee . | . . . . Uniques/NPCs Destroyed . | . . . . Combat | -11 -10 -10 -9 -------- Run | Yrd Mat Min Mat Hostile Shots Fired 103 | . 6 42 55 Missed 33 | . 3 16 14 Hits 70 | . 3 26 41 Projectile 70 | . 3 26 41 AOE 8 | . . 8 . Damage Taken 916 | . 35 517 364 Core 796 | . 29 446 321 Absorbed by Shields . | . . . . Redirected to Core 414 | . 17 258 139 Core Remaining (%) 76 | 100 . 52 . Volleys Fired 65 | . 13 23 29 Largest 2 | . 2 2 2 Hottest 122 | . 100 100 122 Shots Fired 124 | . 26 46 52 Gun 124 | . 26 46 52 Cannon . | . . . . Launcher . | . . . . Special . | . . . . Kinetic . | . . . . Thermal 124 | . 26 46 52 Explosive . | . . . . Electromagnetic . | . . . . Robot Hit Streak 10 | . 7 10 7 Robot Miss Streak 4 | . 1 4 2 Penetration Max . | . . . . Secondary Targets 2 | . . 1 1 Max Gunslinging Chain 1 | . . 1 1 Shots Hit Robots 76 | . 20 32 24 Core Hits 27 | . 8 11 8 Critical Kills . | . . . . Critical Parts Destroyed . | . . . . Critical Strikes 8 | . 3 2 3 Burn 8 | . 3 2 3 Melee Attacks . | . . . . Impact . | . . . . Slashing . | . . . . Piercing . | . . . . Sneak Attacks . | . . . . Combat Hostiles . | . . . . Follow-up Attacks . | . . . . Damage Inflicted 1146 | . 247 428 471 Guns 1146 | . 247 428 471 Cannons . | . . . . Explosions . | . . . . Melee . | . . . . Ramming . | . . . . Kinetic . | . . . . Thermal 1146 | . 247 428 471 Explosive . | . . . . Electromagnetic . | . . . . Impact . | . . . . Slashing . | . . . . Piercing . | . . . . Highest Corruption . | . . . . Average Corruption . | . . . . Corruption Purged . | . . . . Corruption Blocked . | . . . . Overload Shots . | . . . . Overflow Damage . | . . . . Projectiles . | . . . . Explosions . | . . . . Melee . | . . . . Knockbacks . | . . . . Impact . | . . . . Kinetic . | . . . . Secondary . | . . . . Self-Inflicted Damage . | . . . . Shots . | . . . . Rammed . | . . . . Targets Rammed . | . . . . Kicked . | . . . . Crushed . | . . . . Highest Temperature 177 | . 30 135 177 Average Temperature 46 | . 13 54 54 Received Heat Transfer 180 | . 18 108 54 Siege Activations . | . . . . Martial Activations . | . . . . Shielding Activations . | . . . . Robots Disrupted . | . . . . Combat Hostiles . | . . . . Robots Corrupted . | . . . . Combat Hostiles . | . . . . Parts Fried . | . . . . Impact Corruptions . | . . . . Robots Melted 1 | . . 1 . Combat Hostiles 1 | . . 1 . Parts Melted 5 | . 2 2 1 Heat Transferred 3700 | . 962 1406 1332 Parts Sabotaged . | . . . . Parts Stolen . | . . . . Parts Stripped . | . . . . Power Chain Reactions . | . . . . Alert | -11 -10 -10 -9 ------- Run | Yrd Mat Min Mat Maximum Alert Level . | . . . . Low Security (%) 100 | 100 100 100 100 Level 1 . | . . . . Level 2 . | . . . . Level 3 . | . . . . Level 4 . | . . . . Level 5 . | . . . . High Security . | . . . . Max Security . | . . . . Peak Influence 177 | . 91 122 177 Initial 34 | . . 34 31 Average 65 | . 21 84 75 Influence Increases 512 | . 118 188 206 Destroy 0b10 Robot/C 280 | . 20 120 140 Destroy 0b10 Robot/NC 20 | . 20 . . Destroy Leader 58 | . 8 30 20 Successful Hack 8 | . . 8 . Disable Machine 45 | . 45 . . Destroy Structure 26 | . 25 . 1 Lose Combat Pursuer 75 | . . 30 45 Influence Decreases 335 | . 30 194 111 Entered New Map 105 | . . 54 51 Time Decay 220 | . 30 140 50 Lost Part 10 | . . . 10 Squads Dispatched 1 | . 1 . . Investigation . | . . . . Extermination . | . . . . Reinforcement 1 | . 1 . . Assault . | . . . . Garrison . | . . . . Intercept . | . . . . Searches Triggered . | . . . . Construction Impeded . | . . . . Haulers Reinforced . | . . . . Active Scanning Responses . | . . . . Cargo Convoy Interrupts . | . . . . Stealth | -11 -10 -10 -9 --------- Run | Yrd Mat Min Mat Distress Signals 1 | . . . 1 Communications Jammed . | . . . . Distress Signals . | . . . . Times Spotted 27 | . 5 9 13 Peak Tracking Total 6 | . 3 3 6 Tactical Retreats 3 | . . 1 2 Traps | -11 -10 -10 -9 ------- Run | Yrd Mat Min Mat Traps Triggered 1 | . 1 . . Indirectly . | . . . . Trap Hack Attempts . | . . . . Triggered . | . . . . Disarmed . | . . . . Reprogrammed . | . . . . Reused . | . . . . Traps Extracted . | . . . . Installed . | . . . . Triggered . | . . . . Machines | -11 -10 -10 -9 ---------- Run | Yrd Mat Min Mat Machines Disabled 4 | . 4 . . Max in Single Turn 4 | . 4 . . Machines Repaired . | . . . . Machines Dismantled . | . . . . Machines Sabotaged . | . . . . Overloaded Fab Kills . | . . . . Hacking | -11 -10 -10 -9 --------- Run | Yrd Mat Min Mat Machines Accessed 1 | . . 1 . Terminals 1 | . . 1 . Fabricators . | . . . . Repair Stations . | . . . . Recycling Units . | . . . . Scanalyzers . | . . . . Garrison Access . | . . . . Total Hacks 2 | . . 2 . Successful 1 | . . 1 . Failed 1 | . . 1 . Catastrophic . | . . . . Database Lockouts . | . . . . Manual . | . . . . Terminals 2 | . . 2 . Fabricators . | . . . . Repair Stations . | . . . . Recycling Units . | . . . . Scanalyzers . | . . . . Garrison Access . | . . . . Terminal Hacks 1 | . . 1 . Level Access Points 1 | . . 1 . Fabricator Hacks . | . . . . Repair Station Hacks . | . . . . Recycling Unit Hacks . | . . . . Scanalyzer . | . . . . Garrison Access Hacks . | . . . . Unauthorized Hacks . | . . . . Terminals . | . . . . Fabricators . | . . . . Repair Stations . | . . . . Recycling Units . | . . . . Scanalyzers . | . . . . Garrison Access . | . . . . Data Cores Recovered . | . . . . Used . | . . . . Hacking Detections 1 | . . 1 . Full Trace Events . | . . . . Feedback Events . | . . . . Feedback Blocked . | . . . . Robot Schematics Acquired . | . . . . Robots Built . | . . . . Authchips . | . . . . Time . | . . . . Total Robot Build Rating . | . . . . Part Schematics Acquired . | . . . . Parts Built . | . . . . Authchips . | . . . . Time . | . . . . Total Part Build Rating . | . . . . Part Studies Acquired . | . . . . Parts Repaired . | . . . . Time . | . . . . Parts Recycled . | . . . . Recycled Matter . | . . . . Retrieved Matter . | . . . . Retrieved Components . | . . . . Parts Scanalyzed . | . . . . Part Schematics Acquired . | . . . . Parts Damaged . | . . . . Bothacking | -11 -10 -10 -9 ------------ Run | Yrd Mat Min Mat Used RIF Installer . | . . . . Robots Hacked . | . . . . Non-combat . | . . . . Combat . | . . . . Robot Hacks Applied . | . . . . Relay Couplers Released . | . . . . Fabnet Peak Effective % . | . . . . Robots Rewired . | . . . . Allies Hacked . | . . . . Hacks Repelled . | . . . . Allies | -11 -10 -10 -9 -------- Run | Yrd Mat Min Mat Total Allies . | . . . . Largest Group . | . . . . Highest-Rated Group . | . . . . Highest-Rated Ally . | . . . . Total Orders . | . . . . Ally Attacks . | . . . . Total Damage . | . . . . Kills . | . . . . Allies Corrupted . | . . . . Allies Melted . | . . . . Intel | -11 -10 -10 -9 ------- Run | Yrd Mat Min Mat Active Infowar (turns) 492 | . 78 299 115 Structural 492 | . 78 299 115 Robot Analysis Total . | . . . . Derelict Logs Recovered 2 | . . 2 . Drone Launches . | . . . . Drone Recoveries . | . . . . Exploration | -11 -10 -10 -9 ------------- Run | Yrd Mat Min Mat Turns Passed 555 | 26 115 299 115 Spaces Moved 564 | 26 101 406 31 Core 564 | 26 101 406 31 Treads . | . . . . Legs . | . . . . Wheels . | . . . . Hover . | . . . . Flight . | . . . . Fastest Speed 50 | 50 50 50 50 Average Speed 54 | 73 70 50 50 Slowest Speed 100 | 100 100 50 50 Overloaded Moves . | . . . . Propulsion Burnouts . | . . . . Robots Hopped . | . . . . Potential Cave-ins . | . . . . Cave-ins Triggered . | . . . . Exploration Rate (%) 27 | 3 32 70 5 Regions Visited 3 Branch Regions 1 Pre-discovered Areas 1 | . . 1 . Known Exits Taken 1 | . . 1 . Unknown Exits Taken 2 | 1 1 . . Scrap Searched 1 | . . 1 . Spaces Dug . | . . . . Terrain Destroyed 23 | . 23 . . Melee . | . . . . Projectile . | . . . . AOE 23 | . 23 . . Terrain Rammed . | . . . . Walls Destroyed . | . . . . Machines Disabled . | . . . . Actions | -11 -10 -10 -9 --------- Run | Yrd Mat Min Mat Total 683 | 32 116 456 79 Wait 36 | 5 . 15 16 Move 561 | 25 100 405 31 Hop . | . . . . Pick Up 3 | . 1 2 . Fast Attach 6 | 2 2 . 2 Attach . | . . . . Detach . | . . . . Swap . | . . . . Drop 3 | . . 2 1 Fire 65 | . 13 23 29 Melee . | . . . . Ram . | . . . . Kick . | . . . . Crush . | . . . . Escape Stasis . | . . . . Rewire . | . . . . Trap . | . . . . Miscellaneous 9 | . . 9 . Route ------- -11/Scrapyard -10/Materials (discovered 2 exits: *Min x2) -10/Mines (discovered 2 exits: *Mat x2) -9/Materials (discovered 2 exits: Mat / Min) History --------- Turn | Location | Event 9 | -11/Scrapyard | Discovered new exit (range 16) 13 | -11/Scrapyard | Upgraded with Weapon slot (x1) 27 | -11/Scrapyard | Entered Materials 50 | -10/Materials | Discovered new exit (range 11) 85 | -10/Materials | Discovered new exit (range 13) 142 | -10/Materials | Entered Mines 170 | -10/Mines | Discovered new exit (range 12) 209 | -10/Mines | Identified exit to Materials 250 | -10/Mines | Found a Scrap Suit stashed away for nefarious purposes 253 | -10/Mines | Learned location of 1 exit from Materials 270 | -10/Mines | Reached level 2 287 | -10/Mines | Found a damaged Exp. Sensor Array with a note attached 288 | -10/Mines | Found Prototype Device 308 | -10/Mines | Build established: Mutant 332 | -10/Mines | Learned location of Storage (-7) 355 | -10/Mines | Assembled infested the area 360 | -10/Mines | Assisted by a Guerilla fighting off Assembled 360 | -10/Mines | Learned location of 1 exit from Materials 441 | -10/Mines | Entered Materials 442 | -9/Materials | Identified exit to Materials 442 | -9/Materials | Identified exit to Mines 443 | -9/Materials | Reached level 3 484 | -9/Materials | Core integrity fell below 50% 497 | -9/Materials | Core integrity fell below 20% 556 | -9/Materials | Destroyed by G-34 Mercenary with Small Laser Last Messages --------------- 00511_ R-06 Scavenger collects Lgt. Assault Rifle. 00513_ R-06 Scavenger collects Lgt. Ion Engine. 00513_ R-06 Scavenger collects Flight Unit. 00525_ Acquired Prototype Energy Gun. 00525_ Identified Adv. Beam Rifle. 00526_ Dropped Med. Laser. 00527_ Acquired Adv. Beam Rifle. 00528_ G-34 Mercenary suffers critical hit (Burn). 00531_ R-06 Scavenger collects Med. Laser. 00536_ K-01 Serf collects debris. 00542_ G-34 Mercenary suffers critical hit (Burn). 00542_ Aluminum Leg melted. 00542_ G-34 Mercenary destroyed. 00543_ K-01 Serf collects debris. 00545_ B-36 Bruiser destroyed. 00545_ G-34 Mercenary destroyed. 00546_ K-01 Serf collects debris. 00549_ R-06 Scavenger collects Heat Sink. 00551_ G-34 Mercenary suffers critical hit (Burn). 00555_ R-06 Scavenger collects Lgt. Armor Plating. Map ----- +----------------------------------------------------+ | ??????????????????????????#######????????????????? | | ??????????????????????????## ##????????????????? | | ??????????????????????????## ##????????????????? | | ??????????????????????????## ##????????????????? | | ??????????????????????????## ##????????????????? | | ??????????????????????????## ##????????????????? | | ?????????????????????????### ###???????????????? | | ?????????????????????????### ###???????????????? | | ?????????????????????????## ##???????????????? | | ?????????????????????????## ##???????????????? | | ?????????????????????????## " #########????????? | | ?????????????????????????## % #########????????? | | ?????????????????????????## % ??? | | ?????????????????????????### %%##########????????? | | ????????????????? ##########%" ##########????????? | | ?????????????? [ ########## ##????????????????? | | ?????????????? ##????????????????? | | ?????????????? # ????????????????? | | ????????????????+########### # ????????????????? | | ???????????????? ####### # ????????????????? | | ??????????????????????????## # ????????????????? | | ??????????????????????###### # ????????????????? | | ??????????????????????###### # #####??????? | | ??????????????????????##!! ###+########??????? | | ??????????????????????##!! % r / ?????? | | ??????????????????????##[@ % g %w ?????? | | ??????????????????????##[ ?????? | | ??????????????????????##!! ## ####;########??????? | | ??????????????????????##!! ## ### ####??????? | | ??????????????????????####### ##?????????????????? | | ??????????????????????####### ##?????????????????? | | ????????????????????????????? ##?????????????????? | | ????????????????????????????? ?????????????????? | | ????????????????????????????? ??????????????????? | | ?????????????????????????????" ??????????????????? | | ?????????????????????????????? ??????????????????? | | ?????????????????????????????? ??????????????????? | | ?????????????????????????????? ??????????????????? | | ?????????????????????????????????????????????????? | | ?????????????????????????????????????????????????? | | ?????????????????????????????????????????????????? | | ?????????????????????????????????????????????????? | | ?????????????????????????????????????????????????? | | ?????????????????????????????????????????????????? | | ?????????????????????????????????????????????????? | | ?????????????????????????????????????????????????? | | ?????????????????????????????????????????????????? | | ?????????????????????????????????????????????????? | | ?????????????????????????????????????????????????? | | ?????????????????????????????????????????????????? | +----------------------------------------------------+ Best States ------------- Heat Dissipation 31 Energy Generation 10 Energy Capacity 100 Matter Stores 300 Matter Capacity 300 Sight Range 16 Robot Scan Range 2 Terrain Scan Density 10 Evasion (%) 50 Item Schematics ----------------- None Robot Schematics ------------------ None Fabricated ------------ Nothing Repaired ---------- Nothing Studied --------- None Alien Tech Used ----------------- None Achievements -------------- None Challenges ------------ None RPGLIKE | -11 -10 -10 -9 --------- Run | Yrd Mat Min Mat Levels Raised 2 | . . 1 1 XP Earned 6915 | 3000 325 1290 2300 XP Spent 1250 | 900 350 . . Upgrades 6 | 4 2 . . Weapon Slot 1 | 1 . . . Heat Dissipation 1 | 1 . . . Energy Generation 1 | 1 . . . Mass Support 1 | . 1 . . Inventory Capacity 1 | . 1 . . Sensor Range 1 | 1 . . . Protomatter Created 85 | . . 27 58 Integrity Restored 192 | . . 192 . Core 192 | . . 192 . Protomatter Decayed 14 | . . 14 . Game ------ Seed RiotClaymoresGenerator Manual? 0 Play Time 00:08:36 Cumulative 50.1 hours Start 2025.11.23 @ 07:51:21 End 2025.11.23 @ 07:59:13 Sessions 1 Manual Loads 0 Difficulty Rogue Special Mode Winter2019/RPGLIKE Game No. 103 Rogue 103 Adventurer 0 Explorer 0 Win Type - Total 0 Types 0/0/0/0/0/0/0/0/0/0 Lore% 21 Gallery% 35 Achievement% 27 Wizard Run 0 Options --------- Layout 0 ASCII 0 Keyboard 0 Movement Mouse Keybinds 0 Fullscreen 2 Font 18/SmallcapsGlow Map View 76x50 Zoom Use 0% Tactical HUD 1 Map Filters NONE Filters NONE Steam 1 RUN: 9dc159b3-fc3d-4fc8-a482-4afcb20b1496